fUSD/lending_fUSD_20240910
["ID","MTS","AMOUNT","RATE_DAILY","PERIOD"]
[337728985,1725988568312,-557.0,0.00012534,2]
[337728986,1725988568341,-9309.0,0.00012534,2]
[337728987,1725988568364,-810.0,0.00012534,2]
[337728988,1725988568386,-552.0,0.00012534,2]
[337728989,1725988568411,-1899.0,0.00012534,2]
[337728990,1725988568435,-805.0,0.00012534,2]
[337728991,1725988568459,-1942.747,0.00012534,2]
[337728992,1725988577243,-1398.253,0.00012534,2]
[337728993,1725988577265,-1134.0,0.00012534,2]
[337728994,1725988577286,-1922.0,0.00012534,2]
[337728995,1725988577307,-3699.39,0.00012861,2]
[337728996,1725988577328,-256.02258945,0.000129,2]
[337728997,1725988577351,-2893.68753057,0.000129,2]
[337728998,1725988577374,-386.78227157,0.00012999,2]
[337728999,1725988577397,-4410.11400125,0.00012999,2]
[337729000,1725988577422,-152.41198582,0.00012999,2]
[337729001,1725988577444,-150.0,0.00012999,2]
[337729002,1725988577467,-2157.37,0.00012999,2]
[337729003,1725988577490,-503.0,0.00012999,2]
[337729004,1725988577512,-589.0,0.00013,2]
[337729005,1725988577536,-5347.96862134,0.00013,2]
[337729006,1725988577766,-25000.0,0.00013,2]
[337729007,1725988578194,-25000.0,0.00013,2]
[337729008,1725988578729,-25000.0,0.00013,2]
[337729009,1725988579867,500.0,0.00026,60]
[337729010,1725988587354,-151.99,0.00012661,2]
[337729011,1725988587379,-3352.52512036,0.000129,2]
[337729012,1725988587406,-21495.48487964,0.00013,2]
[337729013,1725988592459,-150.01,0.00012999,2]
[337729014,1725988592486,-24849.99,0.00013,2]
[337729015,1725988592877,-25000.0,0.00013,2]
[337729016,1725988598951,-157.11,0.000121,2]
[337729017,1725988598976,-24842.89,0.00013,2]
[337729018,1725988632007,10037.0,0.00025999,60]
[337729019,1725988650652,150.0,0.00015799,120]
[337729021,1725988662280,500.0,0.00026,60]
[337729022,1725988662568,316.77,0.00026,60]
[337729023,1725988683699,500.0,0.00026,60]
[337729024,1725988710549,150.0,0.00015334,120]
[337729025,1725988710608,500.0,0.00026,60]
[337729026,1725988710859,500.0,0.00026,60]
[337729027,1725988711126,500.0,0.00026,60]
[337729028,1725988711432,498.95515556,0.00026,60]
[337729029,1725988714516,500.0,0.00026,60]
[337729031,1725988770566,150.0,0.00025848,120]
[337729043,1725988830529,150.0,0.00024682,120]
[337729047,1725988840200,578.43,0.00028,120]
[337729048,1725988842901,501.56,0.00028,120]
[337729049,1725988845737,500.0,0.00028,120]
[337729050,1725988852638,552.58,0.00028,120]
[337729051,1725988872183,156.56,0.00010437,2]
[337729052,1725988890543,150.0,0.00027741,120]
[337729053,1725988916366,1159.8853754,0.00028,120]
[337729054,1725988935124,583.09,0.00028,120]
[337729055,1725988950766,150.0,0.00027373,120]
[337729057,1725989000346,1440.95,0.00028,120]
[337729058,1725989000604,1440.95,0.00028,120]
[337729059,1725989000895,1440.95,0.00028,120]
[337729060,1725989001418,1440.95,0.00028,120]
[337729061,1725989002037,1440.95,0.00028,120]
[337729062,1725989002341,1440.95,0.00028,120]
[337729063,1725989002681,1440.95,0.00028,120]
[337729064,1725989002961,1440.95,0.00028,120]
[337729065,1725989003240,1440.95,0.00028,120]
[337729066,1725989003506,1440.95,0.00028,120]
[337729067,1725989003875,1440.95,0.00028,120]
[337729068,1725989004175,1440.95,0.00028,120]
[337729069,1725989004595,1440.95,0.00028,120]
[337729070,1725989004964,1440.95,0.00028,120]
[337729071,1725989005353,1440.95,0.00028,120]
[337729072,1725989005638,1440.95,0.00028,120]
[337729073,1725989005927,1440.95,0.00028,120]
[337729074,1725989007152,1440.95,0.00028,120]
[337729075,1725989007271,1440.95,0.00028,120]
[337729076,1725989007537,1440.95,0.00028,120]
[337729077,1725989007934,1440.95,0.00028,120]
[337729078,1725989008204,1440.95,0.00028,120]
[337729079,1725989008495,1440.95,0.00028,120]
[337729080,1725989008768,1441.08554647,0.00028,120]
[337729081,1725989010821,500.0,0.00026164,120]
[337729082,1725989011300,500.0,0.00027999,120]
[337729083,1725989015643,204.799275,0.00027999,120]
[337729084,1725989070855,150.0,0.00027441,120]
[337729284,1725989130506,150.0,0.00027827,120]
[337729883,1725989191062,150.0,0.00026499,120]
[337731766,1725989302856,151.61802796,0.00025,60]
[337731767,1725989310572,500.0,0.00028,120]
[337731768,1725989310886,500.0,0.00028,120]
[337731769,1725989311160,500.0,0.00028,120]
[337731770,1725989311906,291.84184009,0.00028,120]
[337731773,1725989431310,150.0,0.0002663,120]
[337731782,1725989431939,-150.0,0.000121,2]
[337731783,1725989431949,-193.40085634,0.00012123,2]
[337731784,1725989431958,-332.69914366,0.00012123,2]
[337731785,1725989432001,-2271.61963379,0.00012123,2]
[337731786,1725989432011,-250.0,0.00012126,2]
[337731787,1725989432020,-150.77,0.0001217,2]
[337731788,1725989432030,-300.0,0.00012179,2]
[337731789,1725989432039,-150.0,0.00012179,2]
[337731790,1725989432049,-224.85568507,0.00012179,2]
[337731791,1725989432058,-501.99459375,0.00012179,2]
[337731792,1725989432070,-164163.74057771,0.0001218,2]
[337731793,1725989432081,-280.32339627,0.0001218,2]
[337731794,1725989432092,-2871.78515676,0.0001218,2]
[337731795,1725989432103,-3753.76120749,0.0001218,2]
[337731796,1725989432115,-2233.16988502,0.0001218,2]
[337731797,1725989432126,-10808.08059513,0.0001218,2]
[337731798,1725989432137,-1245.568807,0.0001218,2]
[337731828,1725989432551,-24979.78840758,0.0001218,2]
[337731830,1725989432563,-3432.45052123,0.0001218,2]
[337731832,1725989432577,-2763.18092288,0.0001218,2]
[337731833,1725989432592,-69902.161575,0.0001218,2]
[337731834,1725989432603,-1224.92496,0.0001218,2]
[337731835,1725989432615,-732.10144154,0.0001218,2]
[337731836,1725989432626,-344410.31248072,0.0001218,2]
[337731837,1725989432637,-8733.04087757,0.0001218,2]
[337731838,1725989432650,-3094.63215291,0.0001218,2]
[337731841,1725989438062,-269.085,0.0001218,2]
[337731842,1725989438076,-760.64391866,0.0001218,2]
[337731843,1725989438178,-1939.44607857,0.0001218,2]
[337731844,1725989438190,-305.07545363,0.0001218,2]
[337731845,1725989438238,-1427.2185654,0.0001218,2]
[337731846,1725989438250,-470734.71905941,0.0001218,2]
[337731847,1725989438260,-217.28,0.00012223,2]
[337731848,1725989438270,-196.25,0.00012223,2]
[337731849,1725989438281,-659.26924501,0.00012345,2]
[337731850,1725989438291,-2604.31877743,0.00012432,2]
[337731851,1725989438302,-315.0,0.000125,2]
[337731852,1725989438312,-1013.54,0.000125,2]
[337731853,1725989438322,-150.0,0.00012534,2]
[337731854,1725989438332,-7938.567,0.00012534,2]
[337731855,1725989438343,-2604.31877743,0.0001274,2]
[337731856,1725989438353,-284716.71235194,0.000128,2]
[337731857,1725989438363,-296.49,0.000128,2]
[337731858,1725989438374,-500.0,0.00012877,2]
[337731859,1725989438384,-156.2770892,0.000129,2]
[337731860,1725989438396,-2351.81,0.000129,2]
[337731861,1725989438406,-2235.01674692,0.000129,2]
[337731862,1725989438417,-161.05144208,0.00012973,2]
[337731863,1725989438427,-150.77,0.0001299,2]
[337731864,1725989438436,-150.77,0.0001299,2]
[337731865,1725989438447,-150.77,0.0001299,2]
[337731866,1725989438457,-150.77,0.0001299,2]
[337731867,1725989438466,-150.77,0.0001299,2]
[337731868,1725989438476,-150.01,0.00012999,2]
[337731869,1725989438485,-3717.92,0.00013,2]
[337731870,1725989438495,-149864.08042222,0.00013,2]
[337731871,1725989438504,-446491.17946799,0.00013,2]
[337731872,1725989438514,-710716.60663374,0.00013,2]
[337731873,1725989438531,-4677.82886025,0.00013,2]
[337731874,1725989438543,-607.0,0.00013,2]
[337731875,1725989438555,-10626.90037741,0.00013,2]
[337731876,1725989438566,-11216.25702667,0.00013,2]
[337731877,1725989438578,-12250.82474342,0.00013,2]
[337731880,1725989439520,500.0,0.00028,120]
[337731883,1725989439801,500.0,0.00028,120]
[337731888,1725989440044,-3653.02000002,0.00013,2]
[337731889,1725989440057,-27000.0,0.00013,2]
[337731890,1725989440102,500.0,0.00028,120]
[337731891,1725989440117,-485.755,0.00013,2]
[337731892,1725989440175,-339.69213026,0.00013,2]
[337731893,1725989440297,-1500.0,0.00013,2]
[337731894,1725989440340,500.0,0.00028,120]
[337731915,1725989440596,500.0,0.00028,120]
[337731924,1725989440855,341.42225177,0.00028,120]
[337732175,1725989443744,-157.21595744,0.00012999,2]
[337732176,1725989443755,-347.26926761,0.00013,2]
[337732177,1725989443769,-482.285006,0.00013,2]
[337732178,1725989443786,-5949.81,0.00013,2]
[337732181,1725989446099,500.0,0.00028,120]
[337732182,1725989446119,-276.75,0.00013,2]
[337732183,1725989446302,-270.27,0.00013,2]
[337732184,1725989446366,-669.58337309,0.00013,2]
[337732185,1725989446405,500.0,0.00028,120]
[337732191,1725989446679,500.0,0.00028,120]
[337732192,1725989446923,187.61840201,0.00028,120]
[337732193,1725989508209,500.0,0.00028,120]
[337732194,1725989508770,500.0,0.00028,120]
[337732195,1725989509355,500.0,0.00028,120]
[337732196,1725989509826,156.56,0.00010669,2]
[337732197,1725989509999,500.0,0.00028,120]
[337732198,1725989510295,500.0,0.00028,120]
[337732199,1725989510593,500.0,0.00028,120]
[337732200,1725989510866,500.0,0.00028,120]
[337732201,1725989511133,500.0,0.00028,120]
[337732202,1725989511404,500.0,0.00028,120]
[337732203,1725989511825,500.0,0.00028,120]
[337732204,1725989512348,500.0,0.00028,120]
[337732205,1725989512652,500.0,0.00028,120]
[337732206,1725989513103,500.0,0.00028,120]
[337732207,1725989513365,500.0,0.00028,120]
[337732208,1725989513616,500.0,0.00028,120]
[337732209,1725989513904,500.0,0.00028,120]
[337732210,1725989514176,500.0,0.00028,120]
[337732211,1725989514437,500.0,0.00028,120]
[337732212,1725989514705,500.0,0.00028,120]
[337732213,1725989514975,500.0,0.00028,120]
[337732214,1725989515272,500.0,0.00028,120]
[337732215,1725989515681,426.97091384,0.00028,120]
[337732216,1725989525291,604.5,0.00028,120]
[337732217,1725989525558,604.5,0.00028,120]
[337732218,1725989525893,604.5,0.00028,120]
[337732219,1725989526150,604.5,0.00028,120]
[337732220,1725989526441,604.5,0.00028,120]
[337732221,1725989526710,604.5,0.00028,120]
[337732222,1725989526994,604.5,0.00028,120]
[337732223,1725989527275,604.5,0.00028,120]
[337732224,1725989527567,604.5,0.00028,120]
[337732225,1725989528170,604.5,0.00028,120]
[337732226,1725989528966,604.5,0.00028,120]
[337732227,1725989529253,604.5,0.00028,120]
[337732228,1725989529556,604.5,0.00028,120]
[337732229,1725989529839,604.5,0.00028,120]
[337732230,1725989530118,604.5,0.00028,120]
[337732231,1725989530378,604.5,0.00028,120]
[337732232,1725989530648,604.5,0.00028,120]
[337732233,1725989531266,604.5,0.00028,120]
[337732234,1725989531546,604.5,0.00028,120]
[337732235,1725989531820,604.5,0.00028,120]
[337732236,1725989532126,604.5,0.00028,120]
[337732237,1725989532446,604.5,0.00028,120]
[337732238,1725989532763,604.5,0.00028,120]
[337732239,1725989533226,604.5397761,0.00028,120]
[337732240,1725989559725,-150.0,0.000121,2]
[337732241,1725989559751,-1000.0,0.0001255,2]
[337732242,1725989559773,-170.6817263,0.000129,2]
[337732243,1725989559797,-1490.0111646,0.000129,2]
[337732244,1725989559819,-3733.25,0.00012999,2]
[337732245,1725989559842,-300.0,0.00012999,2]
[337732246,1725989559865,-157.39897955,0.00012999,2]
[337732247,1725989559889,-8166.00442955,0.00013,2]
[337732248,1725989560786,500.0,0.00028,120]
[337732249,1725989561058,479.12611332,0.00028,120]
[337732250,1725989562960,-226.65312965,0.00012999,2]
[337732251,1725989562986,-24773.34687035,0.00013,2]
[337732252,1725989563413,-25000.0,0.00013,2]
[337732253,1725989576727,-25000.0,0.00013,2]
[337732254,1725989577407,-25000.0,0.00013,2]
[337732255,1725989578127,-23227.73387822,0.00013,2]
[337732256,1725989578153,-1772.26612178,0.00013,2]
[337732257,1725989578743,500.0,0.00028,120]
[337732258,1725989578821,-25000.0,0.00013,2]
[337732259,1725989579037,500.0,0.00028,120]
[337732260,1725989579289,500.0,0.00028,120]
[337732261,1725989579676,500.0,0.00028,120]
[337732262,1725989579932,500.0,0.00028,120]
[337732263,1725989580007,500.0,0.00028,120]
[337732264,1725989580207,500.0,0.00028,120]
[337732265,1725989580502,500.0,0.00028,120]
[337732266,1725989580794,342.16660328,0.00028,120]
[337732267,1725989582161,548.74,0.00028,120]
[337732268,1725989584244,500.0,0.00010265,2]
[337732269,1725989614928,500.0,0.00025925,120]
[337732270,1725989615469,500.0,0.00027999,120]
[337732272,1725989850529,150.0,0.00027646,120]
[337732273,1725989867025,750.0,0.00011,2]
[337732274,1725989911134,150.0,0.00016553,120]
[337732275,1725989970529,150.0,0.00022095,120]
[337732276,1725990023496,156.56,0.00010391,2]
[337732277,1725990030532,150.0,0.00023937,120]
[337732278,1725990105579,156.68,0.00010959,2]
[337732279,1725990150527,150.0,0.00023903,120]
[337732280,1725990214539,522.708239,0.00025925,120]
[337732281,1725990521835,500.0,0.00028,120]
[337732282,1725990522111,500.0,0.00028,120]
[337732283,1725990558140,346.18634699,0.00028,120]
[337732284,1725990562843,502.49114232,0.00028,120]
[337732285,1725990566285,502.04477137,0.00028,120]
[337732286,1725990572079,156.56,0.00010258,2]
[337732287,1725990572241,502.45903547,0.00028,120]
[337732288,1725990576926,503.02661549,0.00028,120]
[337732289,1725990579211,500.97859339,0.00028,120]
[337732290,1725990583723,500.0,0.00028,120]
[337732291,1725990584026,645.39613462,0.00028,120]
[337732292,1725990586613,500.0,0.00028,120]
[337732293,1725990610652,501.44913909,0.00028,120]
[337732294,1725990612562,500.0,0.00028,120]
[337732296,1725990632209,-150.0,0.000121,2]
[337732297,1725990632219,-250.0,0.00012223,2]
[337732298,1725990632228,-200.03,0.00012285,2]
[337732299,1725990632237,-1000.0,0.00012366,2]
[337732300,1725990632246,-304.78,0.000125,2]
[337732301,1725990632256,-1001.86,0.000125,2]
[337732302,1725990632266,-186.17,0.00012511,2]
[337732303,1725990632275,-150.0,0.00012603,2]
[337732304,1725990632285,-250.0,0.0001263,2]
[337732305,1725990632294,-150.0,0.0001263,2]
[337732306,1725990632303,-150.0,0.0001263,2]
[337732307,1725990632312,-421.39411001,0.00012657,2]
[337732308,1725990632321,-500.0,0.00012877,2]
[337732309,1725990632330,-228.91329271,0.00012899,2]
[337732310,1725990632340,-150.0,0.00012899,2]
[337732311,1725990632349,-300.0,0.00012899,2]
[337732312,1725990632358,-12219.9045,0.000129,2]
[337732313,1725990632367,-1676.94809681,0.000129,2]
[337732314,1725990632378,-21086.26450319,0.000129,2]
[337732315,1725990632387,-156.2770892,0.000129,2]
[337732316,1725990632396,-167.5616787,0.000129,2]
[337732317,1725990632405,-400.0,0.0001297,2]
[337732318,1725990632414,-151.24,0.0001299,2]
[337732319,1725990632424,-192.70221311,0.00012999,2]
[337732320,1725990632433,-530.0,0.00013,2]
[337732321,1725990632442,-114771.19953086,0.00013,2]
[337732322,1725990632451,-189909.61540891,0.00013,2]
[337732323,1725990632463,-82982.30087,0.00013,2]
[337732324,1725990632473,-787.72537109,0.00013,2]
[337732325,1725990632484,-809.14403611,0.00013,2]
[337732326,1725990632495,-1490.10433057,0.00013,2]
[337732327,1725990632506,-1339.32568212,0.00013,2]
[337732328,1725990632519,-2862.03116841,0.00013,2]
[337732329,1725990632530,-1594.44501813,0.00013,2]
[337732330,1725990632542,-501.23538144,0.00013,2]
[337732331,1725990632553,-2903.71306986,0.00013,2]
[337732332,1725990632564,-3421.55845167,0.00013,2]
[337732333,1725990632575,-2228.53585342,0.00013,2]
[337732338,1725990632731,-7.5e-05,0.00013,2]
[337732339,1725990632742,-7494.83037917,0.00013,2]
[337732340,1725990632753,-474.46635641,0.00013,2]
[337732341,1725990632764,-9925.73485824,0.00013,2]
[337732342,1725990632775,-6683.26958659,0.00013,2]
[337732343,1725990632785,-2408.87747833,0.00013,2]
[337732344,1725990632796,-603.91888408,0.00013,2]
[337732345,1725990632808,-619.65174307,0.00013,2]
[337732346,1725990632823,-1381.95190557,0.00013,2]
[337732347,1725990632834,-712.02367317,0.00013,2]
[337732349,1725990632845,-740.97,0.00013,2]
[337732350,1725990632856,-1697.0288294,0.00013,2]
[337732352,1725990632867,-6753.55953814,0.00013,2]
[337732354,1725990632878,-909.30987856,0.00013,2]
[337732357,1725990632889,-636.79253411,0.00013,2]
[337732359,1725990632900,-315.0,0.00013,2]
[337732361,1725990632912,-4036.74748476,0.00013,2]
[337732382,1725990638314,-150.0,0.0001263,2]
[337732383,1725990638323,-510.77587755,0.00013,2]
[337732384,1725990638334,-418308.7220767,0.00013,2]
[337732385,1725990638343,-200.0,0.00013,2]
[337732386,1725990638352,-157.714835,0.00013,2]
[337732387,1725990638361,-5000.0,0.00013,2]
[337732388,1725990638370,-115732.76069975,0.00013,2]
[337732389,1725990638383,-1035.7815816,0.00013,2]
[337732390,1725990638394,-1959.02575318,0.00013,2]
[337732391,1725990638406,-7969.17193469,0.00013,2]
[337732392,1725990638416,-3458.69314524,0.00013,2]
[337732393,1725990638428,-1019.83248483,0.00013,2]
[337732394,1725990638439,-2613.31048833,0.00013,2]
[337732395,1725990638450,-18943.76812934,0.00013,2]
[337732396,1725990638460,-509.16789362,0.00013,2]
[337732397,1725990638471,-32424.92472288,0.00013,2]
[337732419,1725990640169,-844.59940541,0.00013,2]
[337732420,1725990640187,-602.7973578,0.00013,2]
[337732421,1725990640198,-521.176614,0.00013,2]
[337732422,1725990640209,-57011.73399547,0.00013,2]
[337732423,1725990640218,-201.0,0.00013,2]
[337732424,1725990640227,-201.0,0.00013,2]
[337732425,1725990640236,-201.0,0.00013,2]
[337732426,1725990640244,-201.0,0.00013,2]
[337732427,1725990640254,-201.0,0.00013,2]
[337732428,1725990640263,-201.0,0.00013,2]
[337732429,1725990640273,-201.0,0.00013,2]
[337732430,1725990640282,-201.0,0.00013,2]
[337732431,1725990640291,-201.0,0.00013,2]
[337732432,1725990640300,-201.0,0.00013,2]
[337732433,1725990640309,-201.0,0.00013,2]
[337732434,1725990640318,-201.0,0.00013,2]
[337732435,1725990640327,-215.0,0.00013,2]
[337732436,1725990640336,-215.0,0.00013,2]
[337732437,1725990640345,-215.0,0.00013,2]
[337732438,1725990640355,-215.0,0.00013,2]
[337732439,1725990640364,-215.0,0.00013,2]
[337732440,1725990640373,-215.0,0.00013,2]
[337732441,1725990640382,-274.0,0.00013,2]
[337732442,1725990640391,-274.0,0.00013,2]
[337732443,1725990640401,-274.0,0.00013,2]
[337732444,1725990640410,-274.0,0.00013,2]
[337732445,1725990640419,-274.0,0.00013,2]
[337732446,1725990640428,-274.0,0.00013,2]
[337732447,1725990640437,-500.0,0.00013,2]
[337732448,1725990640447,-200.0,0.00013,2]
[337732449,1725990640456,-206.0,0.00013,2]
[337732450,1725990640465,-206.0,0.00013,2]
[337732451,1725990640475,-206.0,0.00013,2]
[337732452,1725990640484,-206.0,0.00013,2]
[337732453,1725990640494,-206.0,0.00013,2]
[337732454,1725990640503,-206.0,0.00013,2]
[337732455,1725990640512,-19054.46999377,0.00013,2]
[337732456,1725990640525,-300.14566,0.00013,2]
[337732457,1725990640537,-5134.55564712,0.00013,2]
[337732458,1725990640548,-1324.73356299,0.00013,2]
[337732459,1725990640560,-2266.00000008,0.00013,2]
[337732460,1725990640571,-215850.3276086,0.00013,2]
[337732461,1725990640581,-687.15713292,0.00013,2]
[337732462,1725990640590,-258590.08516526,0.00013,2]
[337732481,1725990640786,-889.49999995,0.00013,2]
[337732483,1725990640798,-998.56,0.00013,2]
[337732485,1725990640810,-400.075,0.00013,2]
[337732488,1725990640821,-1663.5002,0.00013,2]
[337732490,1725990640833,-6863.8497202,0.00013,2]
[337732492,1725990640844,-578.06080476,0.00013,2]
[337732494,1725990640856,-810.72103756,0.00013,2]
[337732496,1725990640867,-1717.8656299,0.00013,2]
[337732499,1725990640883,-33598.95918226,0.00013,2]
[337732501,1725990640894,-38721.42066455,0.00013,2]
[337732503,1725990640905,-1986.34492326,0.00013,2]
[337732505,1725990640917,-6798.71501061,0.00013,2]
[337732508,1725990640930,-476.45777715,0.00013,2]
[337732510,1725990640942,-2303.5,0.00013,2]
[337732512,1725990640953,-347.9087316,0.00013,2]
[337732514,1725990640964,-621.51461131,0.00013,2]
[337732516,1725990640975,-478.75263346,0.00013,2]
[337732519,1725990640993,-304.33735203,0.00013,2]
[337732522,1725990641007,-660.549,0.00013,2]
[337732750,1725990643200,-2823525.74261691,0.00013,2]
[337732751,1725990643212,-34038.01607144,0.00013,2]
[337732752,1725990643221,-541071.98392856,0.00013,2]
[337732753,1725990643232,-132670.0,0.00013,2]
[337732767,1725990643699,-500.57827625,0.00013,2]
[337732769,1725990643712,-336.84091214,0.00013,2]
[337732771,1725990643723,-1202.82442801,0.00013,2]
[337732774,1725990643735,-13190.16168377,0.00013,2]
[337733012,1725990646372,-5266.159,0.00013,2]
[337733014,1725990646383,-731.0348925,0.00013,2]
[337733016,1725990646396,-1515.01803218,0.00013,2]
[337733018,1725990646407,-589.825,0.00013,2]
[337733024,1725990646463,-658.94883045,0.00013,2]
[337733026,1725990646474,-272.9025235,0.00013,2]
[337733034,1725990646544,-2008.43148739,0.00013,2]
[337733036,1725990646560,-1594.68028115,0.00013,2]
[337733124,1725990690524,150.0,0.00019197,120]
[337733126,1725990750510,150.0,0.00021711,120]
[337733127,1725990762239,500.0,0.00028,120]
[337733128,1725990762491,546.77829923,0.00028,120]
[337733129,1725990765356,417.61388668,0.00028,120]
[337733130,1725990773526,500.0,0.00028,120]
[337733131,1725990773787,500.0,0.00028,120]
[337733132,1725990774051,500.0,0.00028,120]
[337733133,1725990774325,500.0,0.00028,120]
[337733134,1725990774603,500.0,0.00028,120]
[337733135,1725990774867,500.0,0.00028,120]
[337733136,1725990775184,500.0,0.00028,120]
[337733137,1725990775433,500.0,0.00028,120]
[337733138,1725990775702,500.0,0.00028,120]
[337733139,1725990776001,500.0,0.00028,120]
[337733140,1725990776274,500.0,0.00028,120]
[337733141,1725990776533,500.0,0.00028,120]
[337733142,1725990777166,500.0,0.00028,120]
[337733143,1725990777451,500.0,0.00028,120]
[337733144,1725990777720,500.0,0.00028,120]
[337733145,1725990777975,500.0,0.00028,120]
[337733146,1725990778238,500.0,0.00028,120]
[337733147,1725990778509,507.16102233,0.00028,120]
[337733148,1725990800270,500.0,0.00028,120]
[337733149,1725990800528,500.20211201,0.00028,120]
[337733150,1725990832910,500.0,0.00028,120]
[337733151,1725990833178,500.0,0.00028,120]
[337733152,1725990833962,388.19056512,0.00028,120]
[337733153,1725991110545,150.0,0.00027359,120]
[337733154,1725991188605,156.56,0.00010207,2]
[337733155,1725991237924,1250.93,0.00028,120]
[337733156,1725991238199,1250.93,0.00028,120]
[337733157,1725991238471,1250.93,0.00028,120]
[337733158,1725991238750,1250.93,0.00028,120]
[337733159,1725991239031,1250.93,0.00028,120]
[337733160,1725991239343,1250.93,0.00028,120]
[337733161,1725991239602,1250.93,0.00028,120]
[337733162,1725991239891,1250.93,0.00028,120]
[337733163,1725991240171,1250.93,0.00028,120]
[337733164,1725991240532,1250.93,0.00028,120]
[337733165,1725991240849,1250.93,0.00028,120]
[337733166,1725991241144,1250.93,0.00028,120]
[337733167,1725991241442,1250.93,0.00028,120]
[337733168,1725991241734,1250.93,0.00028,120]
[337733169,1725991242010,1250.93,0.00028,120]
[337733170,1725991242315,1250.93,0.00028,120]
[337733171,1725991242613,1250.93,0.00028,120]
[337733172,1725991242885,1250.93,0.00028,120]
[337733173,1725991243202,1250.93,0.00028,120]
[337733174,1725991243492,1250.93,0.00028,120]
[337733175,1725991243768,1250.93,0.00028,120]
[337733176,1725991244163,1250.93,0.00028,120]
[337733177,1725991244423,1250.93,0.00028,120]
[337733178,1725991244702,1251.06280794,0.00028,120]
[337733179,1725991269512,150.0,0.00028,120]
[337733180,1725991285258,436.82,0.00010959,2]
[337733181,1725991351386,150.0,0.00021371,120]
[337733182,1725991470544,150.0,0.0002403,120]
[337733183,1725991514693,250.0,0.00011947,2]
[337733184,1725991531327,150.0,0.00025321,120]
[337733185,1725991687225,750.0,0.00011,2]
[337733186,1725991711079,150.0,0.00026163,120]
[337733187,1725991754086,200.0,0.00011934,2]
[337733188,1725991796810,156.56,9.315e-05,2]
[337733189,1725991822027,186.17,0.00011882,2]
[337733190,1725991831136,150.0,0.00026339,120]
[337733203,1725991832324,-486.59595781,0.00012081,2]
[337733204,1725991832347,-313.40404219,0.00012081,2]
[337733205,1725991832359,-150.0,0.00012199,2]
[337733206,1725991832369,-73.43164196,0.000122,2]
[337733207,1725991832380,-112.55835804,0.000122,2]
[337733208,1725991832390,-315.8981311,0.000122,2]
[337733209,1725991832404,-184.1018689,0.000122,2]